bitfinex/quotes_SOLUSD_20241220
["timestamp","ask_amount","ask_price","bid_price","bid_amount"]
[1734693432151,26.21166131,182.01,181.94,23.776884]
[1734693432353,38.40911316,182.07,181.96,23.776884]
[1734693432354,26.21166131,182.03,181.96,23.776884]
[1734693432672,26.21166131,182.07,181.99,26.21166131]
[1734693432867,26.21166131,182.07,182.0,23.776884]
[1734693433871,26.21166131,182.05,181.97,26.21166131]
[1734693434160,26.21166131,181.99,181.91,26.21166131]
[1734693434467,26.21166131,182.03,181.95,26.21166131]
[1734693435084,26.21166131,182.03,181.96,0.12549]
[1734693435390,26.21166131,182.03,181.98,23.776884]
[1734693436387,26.21166131,182.01,181.98,23.776884]
[1734693436891,26.21166131,182.07,181.91,26.21166131]
[1734693436892,26.21166131,181.99,181.91,26.21166131]
[1734693437191,26.21166131,181.99,181.92,0.12549]
[1734693437689,26.21166131,181.99,181.91,26.21166131]
[1734693437690,26.21166131,182.01,181.94,0.12549]
[1734693438091,26.21166131,182.01,181.91,14.56732203]
[1734693438092,26.21166131,181.99,181.91,26.21166131]
[1734693438391,26.21166131,181.93,181.85,26.21166131]
[1734693438596,26.21166131,181.91,181.83,27.83086131]
[1734693438807,26.21166131,181.89,181.81,26.21166131]
[1734693439105,36.2218,181.96,181.85,26.21166131]
[1734693439106,26.21166131,181.93,181.85,26.21166131]
[1734693439279,26.21166131,181.92,181.84,26.21166131]
[1734693440708,26.21166131,181.9,181.84,26.21166131]
[1734693441011,26.21166131,181.88,181.8,26.21166131]
[1734693441600,26.21166131,181.91,181.84,26.21166131]
[1734693441907,32.43346131,181.96,181.88,26.21166131]
[1734693442300,26.21166131,181.94,181.86,26.21166131]
[1734693442493,32.43346131,181.96,181.89,23.776884]
[1734693442693,26.21166131,181.98,181.92,26.21166131]
[1734693442904,26.21166131,181.98,181.93,23.776884]
[1734693443218,26.21166131,182.02,181.94,26.21166131]
[1734693443430,26.21166131,182.02,181.92,23.776884]
[1734693443431,26.21166131,182.03,181.95,26.33715131]
[1734693443582,26.21166131,182.03,181.96,26.21166131]
[1734693443781,26.21166131,182.04,181.97,26.21166131]
[1734693444097,26.21166131,182.06,181.99,0.12549]
[1734693444278,26.21166131,182.1,182.03,23.902374]
[1734693444478,26.21166131,182.1,182.03,50.11403531]
[1734693444697,26.21166131,182.09,182.03,23.902374]
[1734693444903,26.21166131,182.1,182.03,23.902374]
[1734693445075,26.43764989,182.11,182.03,23.902374]
[1734693445076,42.46176266,182.07,182.03,23.776884]
[1734693445291,42.46176266,182.09,182.03,23.776884]
[1734693445514,42.46176266,182.08,182.03,23.776884]
[1734693445715,42.46176266,182.08,182.02,23.776884]
[1734693446505,42.46176266,182.04,181.97,42.46176266]
[1734693446682,42.46176266,182.0,181.98,23.776884]
[1734693446883,42.46176266,181.99,181.91,42.46176266]
[1734693447108,42.46176266,182.03,181.95,42.46176266]
[1734693447313,42.46176266,182.05,181.98,0.12549]
[1734693447517,42.46176266,182.05,181.99,42.46176266]
[1734693447728,42.46176266,182.05,181.98,0.12549]
[1734693447885,42.46176266,182.05,181.97,42.46176266]
[1734693448200,26.43764989,182.11,181.95,42.46176266]
[1734693448201,42.46176266,182.01,181.95,42.46176266]
[1734693448605,42.46176266,182.01,181.93,42.58725266]
[1734693448917,26.43764989,182.11,181.94,0.82424061]
[1734693449207,49.8374,182.14,181.94,0.82424061]
[1734693449208,42.46176266,182.1,182.03,0.12549]
[1734693449391,42.46176266,182.1,182.03,23.902374]
[1734693449591,42.46176266,182.1,182.03,23.776884]
[1734693450010,6.1112,182.14,182.03,23.776884]
[1734693450011,42.46176266,182.08,182.03,23.776884]
[1734693450314,42.46176266,182.1,182.04,0.12549]
[1734693450491,6.1112,182.14,182.04,42.58725266]
[1734693450492,42.46176266,182.12,182.04,42.58725266]
[1734693450693,42.46176266,182.12,182.06,0.12549]
[1734693451308,42.46176266,182.14,182.07,23.776884]
[1734693451496,42.46176266,182.13,182.07,23.776884]
[1734693452621,42.46176266,182.13,182.08,0.12549]
[1734693452920,42.46176266,182.13,182.07,23.776884]
[1734693453120,42.46176266,182.09,182.02,42.46176266]
[1734693453292,42.46176266,182.07,182.04,23.776884]
[1734693453498,42.46176266,182.09,182.02,42.46176266]
[1734693453928,42.46176266,182.09,182.03,0.12549]
[1734693454533,42.46176266,182.09,182.0,42.46176266]
[1734693456106,42.46176266,182.07,182.0,42.46176266]
[1734693456316,42.46176266,182.05,181.98,42.46176266]
[1734693456899,42.46176266,182.05,181.97,1.5591]
[1734693457127,42.46176266,182.05,181.96,42.46176266]
[1734693457424,30.0,182.09,181.96,42.46176266]
[1734693457425,42.46176266,182.03,181.96,42.46176266]
[1734693457624,42.46176266,182.03,181.94,42.58725266]
[1734693457920,42.46176266,182.03,181.96,42.46176266]
[1734693458121,6.6246,182.07,181.91,1.5834]
[1734693458122,42.46176266,182.07,182.0,42.46176266]
[1734693459247,42.46176266,182.13,182.04,42.46176266]
[1734693459406,42.46176266,182.15,182.06,42.46176266]
[1734693459613,42.46176266,182.15,182.07,0.12549]
[1734693459924,42.46176266,182.15,182.07,23.902374]
[1734693460132,6.571,182.19,182.07,23.902374]
[1734693460133,42.46176266,182.13,182.07,23.902374]
[1734693460433,42.46176266,182.13,182.07,23.776884]
[1734693460738,42.46176266,182.11,182.05,23.776884]
[1734693461111,42.46176266,182.13,182.06,0.12549]
[1734693461512,42.46176266,182.13,182.06,42.58725266]
[1734693461729,42.46176266,182.13,182.08,0.12549]
[1734693462342,42.46176266,182.15,182.08,0.12549]
[1734693463026,42.46176266,182.13,182.07,23.776884]
[1734693463228,42.46176266,182.09,182.06,23.776884]
[1734693463533,42.46176266,182.07,181.97,1.6068]
[1734693463709,42.46176266,182.04,181.95,42.46176266]
[1734693463903,42.46176266,182.02,181.95,42.46176266]
[1734693464515,42.46176266,182.0,181.93,42.46176266]
[1734693464756,42.46176266,181.96,181.89,42.46176266]
[1734693464926,42.46176266,181.94,181.87,42.46176266]
[1734693465208,26.17413093,181.94,181.86,26.17413093]
[1734693465409,26.17413093,181.9,181.84,1.6068]
[1734693465712,26.17413093,181.88,181.79,26.17413093]
[1734693466042,26.17413093,181.86,181.79,26.17413093]
[1734693467050,42.57366127,181.86,181.78,42.57366127]
[1734693467848,20.255,181.94,181.82,42.57366127]
[1734693467849,42.57366127,181.9,181.82,42.57366127]
[1734693468019,6.5135,181.94,181.8,42.57366127]
[1734693468020,42.57366127,181.88,181.8,42.57366127]
[1734693468217,42.57366127,181.86,181.81,23.776884]
[1734693468839,42.57366127,181.86,181.78,42.57366127]
[1734693469023,42.57366127,181.84,181.77,1.5434]
[1734693469208,42.57366127,181.82,181.72,42.57366127]
[1734693469413,42.57366127,181.8,181.72,42.57366127]
[1734693469612,42.57366127,181.8,181.71,15.3012]
[1734693469613,42.57366127,181.82,181.74,42.57366127]
[1734693470221,42.57366127,181.82,181.75,0.12549]
[1734693470421,42.57366127,181.84,181.76,42.57366127]
[1734693470641,42.57366127,181.84,181.77,23.776884]
[1734693471717,42.57366127,181.8,181.77,23.776884]
[1734693472030,42.57366127,181.78,181.7,42.57366127]
[1734693472260,20.0,181.73,181.66,42.57366127]
[1734693472438,42.57366127,181.74,181.66,42.57366127]
[1734693472732,42.57366127,181.76,181.68,42.57366127]
[1734693473336,42.57366127,181.78,181.7,42.57366127]
[1734693473541,6.6657,181.79,181.68,42.57366127]
[1734693473542,42.57366127,181.76,181.68,42.57366127]
[1734693474238,42.57366127,181.76,181.69,23.776884]
[1734693474612,42.57366127,181.74,181.66,42.57366127]
[1734693475325,42.57366127,181.76,181.68,42.57366127]
[1734693476346,6.6657,181.79,181.7,42.57366127]
[1734693476347,42.57366127,181.78,181.7,42.57366127]
[1734693476533,42.57366127,181.74,181.66,66.35054527]
[1734693476724,42.57366127,181.7,181.66,23.776884]
[1734693476926,42.57366127,181.67,181.64,0.683]
[1734693477118,42.57366127,181.65,181.64,0.683]
[1734693477631,62.57366127,181.65,181.64,0.683]
[1734693478135,92.57366127,181.65,181.64,0.683]
[1734693478313,62.57366127,181.65,181.64,0.683]
[1734693478521,92.57366127,181.65,181.64,0.683]
[1734693479040,92.57366127,181.65,181.51,42.57366127]
[1734693479041,20.0,181.64,181.51,42.57366127]
[1734693479336,42.57366127,181.59,181.52,23.776884]
[1734693479539,42.57366127,181.55,181.52,23.776884]
[1734693479769,30.0,181.61,181.46,0.6830395]
[1734693479770,42.57366127,181.53,181.46,0.6830395]
[1734693479929,42.57366127,181.5,181.46,0.6830395]
[1734693480529,42.57366127,181.52,181.46,0.6830395]
[1734693481145,42.57366127,181.5,181.46,0.6830395]
[1734693481445,42.57366127,181.48,181.46,0.6830395]
[1734693482645,42.57366127,181.5,181.46,0.6830395]
[1734693482942,42.57366127,181.54,181.47,42.57366127]
[1734693483142,42.57366127,181.5,181.46,0.6830395]
[1734693483523,42.57366127,181.52,181.46,0.6830395]
[1734693483930,69.09192082,181.56,181.47,42.69915127]
[1734693484161,42.57366127,181.54,181.47,23.776884]
[1734693484623,42.57366127,181.62,181.47,23.776884]
[1734693484624,42.57366127,181.6,181.52,0.12549]
[1734693484830,42.57366127,181.6,181.51,42.57366127]
[1734693485135,42.57366127,181.58,181.51,42.57366127]
[1734693485342,42.57366127,181.6,181.51,42.57366127]
[1734693485542,42.57366127,181.6,181.47,23.776884]
[1734693485543,42.57366127,181.54,181.47,23.776884]
[1734693485745,42.57366127,181.55,181.52,23.776884]
[1734693485937,42.57366127,181.57,181.49,42.57366127]
[1734693486325,42.57366127,181.55,181.5,23.776884]
[1734693486529,42.57366127,181.53,181.5,23.776884]
[1734693486757,42.57366127,181.53,181.47,23.776884]
[1734693487854,42.57366127,181.51,181.47,23.776884]
[1734693488027,13.7657,181.61,181.46,0.6830395]
[1734693488028,42.57366127,181.49,181.46,0.6830395]
[1734693488229,42.57366127,181.51,181.46,0.6830395]
[1734693488929,42.57366127,181.53,181.46,0.6830395]
[1734693489130,42.57366127,181.55,181.47,42.57366127]
[1734693489332,42.57366127,181.51,181.46,0.6830395]
[1734693489552,13.7657,181.61,181.46,0.6830395]
[1734693489553,42.57366127,181.53,181.46,0.6830395]
[1734693489940,42.57366127,181.55,181.47,66.47603527]
[1734693490131,42.57366127,181.53,181.47,23.776884]
[1734693490447,42.57366127,181.53,181.46,0.6830395]
[1734693491171,56.33876127,181.62,181.47,42.57366127]
[1734693491172,42.57366127,181.55,181.47,42.57366127]
[1734693491478,42.57366127,181.55,181.48,23.776884]
[1734693491674,42.57366127,181.57,181.49,42.69915127]
[1734693491847,42.57366127,181.59,181.51,42.57366127]
[1734693492051,42.57366127,181.59,181.52,0.12549]
[1734693492278,42.57366127,181.59,181.51,42.57366127]
[1734693492777,42.57366127,181.53,181.52,23.776884]
[1734693492977,42.57366127,181.53,181.46,0.6830395]
[1734693493275,42.57366127,181.55,181.46,43.25670077]
[1734693493488,42.57366127,181.57,181.49,0.12549]
[1734693494068,42.57366127,181.57,181.48,42.57366127]
[1734693494294,42.57366127,181.57,181.49,0.12549]
[1734693494451,42.57366127,181.59,181.52,42.57366127]
[1734693494654,42.57366127,181.59,181.53,0.12549]
[1734693494959,26.2736824,181.6,181.53,0.12549]
[1734693495276,26.2736824,181.58,181.53,23.776884]
[1734693495578,26.2736824,181.56,181.49,23.776884]
[1734693495887,26.2736824,181.52,181.49,23.776884]
[1734693496061,26.2736824,181.54,181.46,26.9567219]
[1734693496250,26.2736824,181.62,181.49,0.12549]
[1734693496251,26.2736824,181.56,181.49,0.12549]
[1734693496451,26.2736824,181.56,181.48,26.2736824]
[1734693497363,26.2736824,181.54,181.46,26.9567219]
[1734693497556,26.2736824,181.54,181.49,23.776884]
[1734693497756,30.0,181.59,181.49,23.776884]
[1734693497757,26.2736824,181.52,181.49,23.776884]
[1734693497971,26.2736824,181.52,181.46,0.6830395]
[1734693498586,26.2736824,181.54,181.48,26.2736824]
[1734693498770,26.2736824,181.54,181.46,26.9567219]
[1734693499075,26.2736824,181.54,181.47,23.776884]
[1734693499790,26.2736824,181.54,181.49,23.776884]
[1734693500984,26.2736824,181.54,181.46,26.9567219]
[1734693501207,26.2736824,181.52,181.46,0.6830395]
[1734693501499,26.2736824,181.54,181.46,26.9567219]
[1734693501713,26.2736824,181.56,181.48,26.2736824]
[1734693501868,26.2736824,181.58,181.51,0.12549]
[1734693502188,26.2736824,181.62,181.54,26.2736824]
[1734693502775,26.2736824,181.57,181.52,23.776884]
[1734693502971,26.2736824,181.57,181.49,26.2736824]
[1734693503173,26.2736824,181.59,181.51,26.2736824]
[1734693503371,26.2736824,181.59,181.52,23.776884]
[1734693504107,26.2736824,181.57,181.5,23.776884]
[1734693504404,26.2736824,181.55,181.47,26.2736824]
[1734693504804,26.2736824,181.55,181.46,14.4593395]
[1734693504805,26.2736824,181.53,181.46,14.4593395]
[1734693504998,26.2736824,181.55,181.47,26.2736824]
[1734693505208,26.2736824,181.59,181.51,26.2736824]
[1734693505504,26.2736824,181.61,181.53,26.2736824]
[1734693506177,26.2736824,181.59,181.52,23.776884]
[1734693507014,26.2736824,181.57,181.49,26.2736824]
[1734693507310,26.2736824,181.55,181.47,26.2736824]
[1734693507519,26.2736824,181.55,181.46,26.9567219]
[1734693507805,26.2736824,181.55,181.48,26.2736824]
[1734693508576,26.2736824,181.57,181.49,23.776884]
[1734693508970,26.5080918,181.63,181.5,26.3991724]
[1734693509171,26.2736824,181.59,181.52,26.2736824]
[1734693509676,26.2736824,181.55,181.48,26.2736824]
[1734693510092,26.2736824,181.57,181.48,26.2736824]
[1734693510374,26.2736824,181.57,181.47,13.7763]
[1734693510677,26.2736824,181.55,181.47,40.0499824]
[1734693511072,26.2736824,181.55,181.48,23.776884]
[1734693511285,56.2736824,181.62,181.5,23.776884]
[1734693511286,26.2736824,181.57,181.5,23.776884]
[1734693512111,26.2736824,181.55,181.47,40.0499824]
[1734693512294,26.2736824,181.55,181.48,23.776884]
[1734693512779,26.2736824,181.52,181.45,26.2736824]
[1734693512989,26.2736824,181.52,181.43,27.8499824]
[1734693513699,30.0,181.59,181.45,26.2736824]
[1734693513916,26.2736824,181.52,181.45,26.2736824]
[1734693514113,26.2736824,181.54,181.45,40.0510824]
[1734693514415,26.2736824,181.56,181.47,40.0499824]
[1734693514801,26.2736824,181.56,181.48,23.776884]
[1734693515322,26.2736824,181.56,181.49,26.2736824]
[1734693515491,26.2736824,181.56,181.5,23.776884]
[1734693515691,26.2736824,181.56,181.48,23.776884]
[1734693516204,26.2736824,181.54,181.47,50.0505664]
[1734693516599,26.2736824,181.54,181.47,23.776884]
[1734693516806,26.2736824,181.54,181.45,26.2736824]
[1734693518016,26.2736824,181.56,181.47,26.3991724]
[1734693518224,26.2736824,181.54,181.47,26.2736824]
[1734693518422,26.2736824,181.54,181.46,0.6830395]
[1734693518714,26.2736824,181.62,181.46,0.6830395]
[1734693518715,26.2736824,181.52,181.46,0.6830395]
[1734693519123,13.7658,181.61,181.46,0.6830395]
[1734693519124,26.2736824,181.54,181.46,0.6830395]
[1734693519416,26.2736824,181.52,181.46,0.6830395]
[1734693520009,26.2736824,181.54,181.47,23.776884]
[1734693520222,26.2736824,181.56,181.48,0.12549]
[1734693521123,26.5080918,181.63,181.48,0.12549]
[1734693521124,26.2736824,181.58,181.51,26.2736824]
[1734693521700,26.2736824,181.6,181.52,23.776884]
[1734693522235,26.2736824,181.62,181.53,26.2736824]
[1734693522609,26.2736824,181.6,181.51,26.2736824]
[1734693522811,26.2736824,181.62,181.53,26.2736824]
[1734693523103,26.5080918,181.63,181.54,23.776884]
[1734693523104,26.2736824,181.6,181.54,23.776884]
[1734693523331,26.2736824,181.6,181.53,26.2736824]
[1734693524008,26.2736824,181.68,181.58,26.2736824]
[1734693524326,18.68132392,181.7,181.62,26.2736824]
[1734693524327,26.2736824,181.7,181.62,26.2736824]
[1734693524527,26.2736824,181.72,181.64,26.2736824]
[1734693525030,56.2736824,181.8,181.67,23.776884]
[1734693525031,26.2736824,181.74,181.67,23.776884]
[1734693525248,26.2736824,181.76,181.68,26.2736824]
[1734693525430,26.2736824,181.74,181.66,26.2736824]
[1734693525600,26.2736824,181.7,181.6,26.2736824]
[1734693525800,26.2736824,181.68,181.61,23.776884]
[1734693527341,30.0,181.75,181.61,23.776884]
[1734693527543,26.2736824,181.67,181.61,23.776884]
[1734693527840,26.2736824,181.67,181.59,27.8645824]
[1734693528671,20.0,181.72,181.61,26.2736824]
[1734693528867,26.2736824,181.69,181.62,23.776884]
[1734693529777,26.2736824,181.65,181.62,23.776884]
[1734693529935,26.2736824,181.63,181.55,26.2736824]
[1734693530975,26.2736824,181.65,181.57,26.2736824]
[1734693531350,26.2736824,181.65,181.58,23.776884]
[1734693531674,26.2736824,181.67,181.59,0.12549]
[1734693531847,26.2736824,181.67,181.58,23.776884]
[1734693531848,26.2736824,181.69,181.61,26.3991724]
[1734693532414,26.2736824,181.69,181.61,26.2736824]
[1734693532584,26.2736824,181.67,181.6,23.776884]
[1734693533342,26.2736824,181.69,181.61,26.2736824]
[1734693533570,26.2736824,181.69,181.62,23.776884]
[1734693533782,26.2736824,181.65,181.55,0.82576715]
[1734693533945,26.2736824,181.65,181.58,23.776884]
[1734693536264,26.2736824,181.67,181.6,23.776884]
[1734693536587,26.2736824,181.69,181.62,23.776884]
[1734693538098,26.2736824,181.71,181.64,23.776884]
[1734693538965,1.5527,181.79,181.67,26.2736824]
[1734693538966,26.2736824,181.75,181.67,26.2736824]
[1734693539662,26.2736824,181.75,181.68,23.776884]
[1734693542012,26.2736824,181.73,181.65,26.2736824]
[1734693542203,6.5564,181.79,181.65,23.776884]
[1734693542204,26.2736824,181.67,181.65,23.776884]
[1734693542493,26.2736824,181.67,181.55,26.2736824]
[1734693542695,26.2736824,181.62,181.55,26.2736824]
[1734693543475,26.2736824,181.6,181.53,26.2736824]
[1734693543770,26.2736824,181.6,181.52,1.6628]
[1734693544301,26.2736824,181.6,181.51,26.2736824]
[1734693545099,36.3035,181.68,181.55,26.2736824]
[1734693545309,32.5771824,181.68,181.59,26.2736824]
[1734693545470,26.2736824,181.7,181.63,26.2736824]
[1734693545671,26.2736824,181.72,181.65,26.2736824]
[1734693545873,6.2811,181.73,181.65,26.2736824]
[1734693546073,26.2736824,181.74,181.66,23.776884]
[1734693546303,26.2736824,181.72,181.66,23.776884]
[1734693546474,26.2736824,181.76,181.67,26.3991724]
[1734693546668,26.2736824,181.74,181.65,26.2736824]
[1734693546985,26.2736824,181.72,181.66,23.776884]
[1734693547786,26.2736824,181.74,181.66,23.776884]
[1734693548091,26.2736824,181.76,181.68,23.776884]
[1734693548481,26.2736824,181.74,181.68,23.776884]
[1734693548677,26.2736824,181.74,181.65,26.2736824]
[1734693548895,26.2736824,181.72,181.65,26.2736824]
[1734693549091,26.2736824,181.72,181.66,23.776884]
[1734693550292,26.2736824,181.7,181.66,23.776884]
[1734693550478,26.2736824,181.7,181.63,26.2736824]
[1734693550679,26.2736824,181.7,181.64,23.776884]
[1734693551088,26.2736824,181.74,181.65,26.2736824]
[1734693551294,6.2811,181.78,181.66,23.902374]
[1734693551295,26.2736824,181.72,181.66,23.902374]
[1734693552214,6.2811,181.78,181.66,23.902374]
[1734693552215,26.2736824,181.74,181.67,26.2736824]
[1734693552387,26.2736824,181.74,181.68,23.776884]
[1734693552894,26.2736824,181.72,181.68,23.776884]
[1734693553094,26.2736824,181.72,181.64,13.7634]
[1734693553095,26.2736824,181.7,181.63,26.2736824]
[1734693553294,26.2736824,181.7,181.64,23.776884]
[1734693553511,6.2811,181.78,181.64,23.776884]
[1734693553715,26.2736824,181.71,181.64,23.776884]
[1734693554010,26.2736824,181.75,181.67,26.2736824]
[1734693554188,26.2736824,181.75,181.68,23.776884]
[1734693554510,26.2736824,181.73,181.68,23.776884]
[1734693554685,26.2736824,181.73,181.65,26.3991724]
[1734693554885,26.2736824,181.71,181.66,23.776884]
[1734693555514,26.2736824,181.67,181.59,41.5761824]
[1734693555688,26.2736824,181.65,181.59,1.5359]
[1734693557189,26.2736824,181.65,181.6,23.776884]
[1734693557590,26.2736824,181.63,181.55,26.2736824]
[1734693557808,26.2736824,181.59,181.51,26.2736824]
[1734693558409,27.9163824,181.61,181.53,26.2736824]
[1734693558607,26.2736824,181.54,181.46,0.6830395]
[1734693558805,26.2736824,181.52,181.46,0.6830395]
[1734693560015,26.2736824,181.52,181.48,23.776884]
[1734693560217,26.2736824,181.54,181.48,23.776884]
[1734693560407,26.2736824,181.54,181.47,23.902374]
[1734693561089,26.2736824,181.56,181.48,26.2736824]
[1734693561400,26.2736824,181.58,181.52,20.0]
[1734693561715,26.2736824,181.58,181.53,23.776884]
[1734693561913,26.2736824,181.56,181.53,23.776884]
[1734693562402,26.2736824,181.62,181.53,23.776884]
[1734693562403,26.2736824,181.58,181.53,23.776884]
[1734693563612,26.2736824,181.56,181.53,23.776884]
[1734693564406,26.2736824,181.6,181.54,0.12549]
[1734693565606,26.2736824,181.6,181.56,20.0]
[1734693565810,26.2736824,181.6,181.57,23.776884]
[1734693566229,6.4786,181.66,181.48,26.2736824]
[1734693566230,26.2736824,181.58,181.48,26.2736824]
[1734693566428,26.2736824,181.56,181.51,20.0]
[1734693567239,26.2736824,181.56,181.52,0.12549]
[1734693567621,26.2736824,181.56,181.52,23.776884]
[1734693567821,26.2736824,181.62,181.56,23.902374]
[1734693568041,12.29434263,181.68,181.58,23.902374]
[1734693568042,26.2736824,181.66,181.58,23.902374]
[1734693569215,26.2736824,181.66,181.6,23.902374]
[1734693569412,26.2736824,181.7,181.64,0.12549]
[1734693569636,26.2736824,181.7,181.64,43.902374]
[1734693569815,26.2736824,181.72,181.64,43.902374]
[1734693570223,26.2736824,181.7,181.64,43.902374]
[1734693572131,26.2736824,181.72,181.66,0.12549]
[1734693572461,26.2736824,181.74,181.66,23.902374]
[1734693573342,26.2736824,181.74,181.68,23.902374]
[1734693573523,12.29434263,181.84,181.7,23.902374]
[1734693573524,26.2736824,181.76,181.7,23.902374]
[1734693574249,18.46824263,181.84,181.7,23.902374]
[1734693574250,30.0,181.81,181.7,23.776884]
[1734693574431,30.0,181.77,181.62,20.0]
[1734693574624,13.7491,181.83,181.55,1.6416]
[1734693574858,20.0,181.75,181.56,0.82573493]
[1734693575356,26.2736824,181.66,181.58,26.2736824]
[1734693575560,26.2736824,181.66,181.59,0.82572078]
[1734693575727,26.2736824,181.66,181.6,0.12549]
[1734693575927,26.2736824,181.66,181.62,0.12549]
[1734693576129,26.2736824,181.68,181.62,0.12549]
[1734693576767,26.2736824,181.66,181.61,23.776884]
[1734693577852,26.2736824,181.66,181.58,26.2736824]
[1734693578159,26.2736824,181.64,181.56,26.2736824]
[1734693578360,26.2736824,181.62,181.55,1.6416]
[1734693578561,26.2736824,181.62,181.56,0.12549]
[1734693578775,26.2736824,181.66,181.59,0.12549]
[1734693579261,26.2736824,181.68,181.61,0.12549]
[1734693579462,6.2038,181.78,181.63,0.12549]
[1734693579463,26.2736824,181.7,181.63,0.12549]
[1734693579630,26.2736824,181.7,181.63,23.902374]
[1734693579978,26.2736824,181.72,181.65,0.12549]
[1734693580136,26.2736824,181.72,181.65,23.902374]
[1734693580871,26.2736824,181.69,181.65,23.776884]
[1734693581164,26.2736824,181.71,181.65,23.776884]
[1734693581368,26.2736824,181.69,181.64,23.776884]
[1734693581950,26.2736824,181.69,181.58,0.82571673]
[1734693582164,26.2736824,181.67,181.59,26.2736824]
[1734693582580,26.2736824,181.67,181.6,0.12549]
[1734693583074,26.2736824,181.67,181.6,0.95133259]
[1734693583272,26.2736824,181.69,181.62,0.12549]
[1734693583477,26.2736824,181.69,181.62,23.902374]
[1734693583952,26.2736824,181.71,181.64,23.902374]
[1734693584351,26.2736824,181.73,181.66,0.12549]
[1734693584555,26.2736824,181.75,181.68,0.12549]
[1734693584752,26.2736824,181.75,181.68,23.902374]
[1734693585567,26.2736824,181.75,181.55,16.48174475]
[1734693585568,26.2736824,181.69,181.59,26.2736824]
[1734693585775,26.2736824,181.65,181.57,26.2736824]
[1734693586191,26.2736824,181.65,181.58,0.12549]
[1734693586469,26.2736824,181.67,181.6,0.12549]
[1734693586877,26.2736824,181.71,181.64,0.12549]
[1734693587577,26.2736824,181.73,181.66,0.12549]
[1734693587753,26.2736824,181.73,181.66,23.902374]
[1734693588354,26.2736824,181.71,181.66,23.902374]
[1734693588779,26.2736824,181.71,181.66,23.776884]
[1734693589704,26.2736824,181.68,181.66,23.776884]
[1734693590190,26.2736824,181.7,181.66,23.776884]
[1734693590361,26.2736824,181.67,181.6,26.2736824]
[1734693590993,26.2736824,181.69,181.6,26.2736824]
[1734693591163,26.2736824,181.67,181.6,26.2736824]
[1734693591873,26.2736824,181.63,181.56,27.09939766]
[1734693592193,26.2736824,181.63,181.56,26.2736824]
[1734693592404,26.2736824,181.59,181.52,26.2736824]
[1734693592691,26.2736824,181.59,181.5,34.4077824]
[1734693592899,26.2736824,181.57,181.5,1.6203]
[1734693593265,26.2736824,181.59,181.51,0.12549]
[1734693593894,26.2736824,181.59,181.5,28.72010802]
[1734693594561,26.2736824,181.59,181.51,0.12549]
[1734693595009,26.2736824,181.57,181.48,26.2736824]
[1734693595176,26.2736824,181.57,181.5,26.2736824]
[1734693595998,26.2736824,181.57,181.51,0.12549]
[1734693597219,26.2736824,181.59,181.51,23.902374]
[1734693597410,26.2736824,181.59,181.53,23.902374]
[1734693598308,26.2736824,181.57,181.53,0.12549]
[1734693598674,26.2736824,181.57,181.52,23.776884]
[1734693598870,26.2736824,181.55,181.51,23.776884]
[1734693599093,26.2736824,181.62,181.52,0.12549]
[1734693599312,26.2736824,181.56,181.52,0.12549]
[1734693599491,26.2736824,181.58,181.52,0.12549]
[1734693600211,26.2736824,181.56,181.52,0.12549]
[1734693600575,26.2736824,181.54,181.48,0.82610707]
[1734693600797,26.2736824,181.52,181.46,0.6830395]
[1734693601105,26.2736824,181.55,181.48,26.2736824]
[1734693601312,26.2736824,181.62,181.48,26.2736824]
[1734693601313,26.2736824,181.56,181.48,26.2736824]
[1734693601615,26.2736824,181.6,181.51,26.2736824]
[1734693601906,26.2736824,181.6,181.54,0.12549]
[1734693602114,26.2736824,181.58,181.54,0.12549]
[1734693602289,26.2736824,181.58,181.49,27.09973773]
[1734693602490,26.2736824,181.55,181.49,0.82605533]
[1734693602696,26.2736824,181.57,181.5,26.3991724]
[1734693602909,26.2736824,181.58,181.5,40.1732724]
[1734693603929,26.2736824,181.56,181.5,0.12549]
[1734693604147,26.2736824,181.56,181.48,26.2736824]
[1734693604643,26.2736824,181.56,181.49,0.82634593]
[1734693604939,26.2736824,181.61,181.54,0.12549]
[1734693605101,26.2736824,181.63,181.56,0.12549]
[1734693605301,26.2736824,181.63,181.56,27.22505943]
[1734693605524,26.2736824,181.65,181.59,0.12549]
[1734693605737,26.2736824,181.66,181.59,0.12549]
[1734693606039,26.2736824,181.67,181.59,26.3991724]
[1734693606205,26.2736824,181.7,181.62,26.2736824]
[1734693606525,26.49404043,181.72,181.65,0.12549]
[1734693606526,52.76772283,181.72,181.65,0.12549]
[1734693606728,26.2736824,181.73,181.66,0.12549]
[1734693607050,26.2736824,181.72,181.66,0.12549]
[1734693607205,26.2736824,181.7,181.64,27.09912771]